fUSD/lending_fUSD_20250923
["ID","MTS","AMOUNT","RATE_DAILY","PERIOD"]
[387184676,1758619840409,-1135.3,0.00023126,2]
[387184677,1758619840420,-2271.26226985,0.00023126,2]
[387184678,1758619840432,-23119.02535122,0.00023126,2]
[387184679,1758619840442,-117606.21766076,0.00023127,2]
[387184680,1758619840452,-117606.21766076,0.00023131,2]
[387184681,1758619840462,-2500.0,0.00023132,2]
[387184682,1758619840473,-117606.21766076,0.00023132,2]
[387184683,1758619840483,-257.58321915,0.00023149,2]
[387184684,1758619840493,-257.58321915,0.00023173,2]
[387184685,1758619840502,-117606.21766076,0.00023183,2]
[387184686,1758619840512,-117606.21766076,0.00023184,2]
[387184687,1758619840522,-949.0,0.00023281,2]
[387184688,1758619840531,-250.0,0.00023282,2]
[387184689,1758619840541,-600.0,0.000233,2]
[387184690,1758619840551,-228.69,0.00023307,2]
[387184691,1758619840561,-150.0,0.00023361,7]
[387184692,1758619840574,-415.68,0.00023364,2]
[387184693,1758619840592,-150.0,0.000234,4]
[387184694,1758619840602,-150.0,0.000234,4]
[387184695,1758619840614,-150.0,0.000234,4]
[387184696,1758619840626,-150.0,0.000234,4]
[387184697,1758619840636,-224.84664909,0.000234,4]
[387184698,1758619840647,-150.0,0.000234,4]
[387184699,1758619840663,-150.0,0.000234,4]
[387184700,1758619840672,-150.0,0.000234,4]
[387184701,1758619840682,-242.36616451,0.000234,4]
[387184702,1758619840692,-200.0,0.00023469,2]
[387184703,1758619840702,-2405.54,0.00023566,2]
[387184704,1758619840712,-377.0,0.0002361,2]
[387184705,1758619840721,-9698.25888823,0.00023642,2]
[387184706,1758619840731,-3000.0,0.0002368,2]
[387184707,1758619840742,-152.0,0.00023701,3]
[387184708,1758619840751,-377.0,0.00023764,2]
[387184709,1758619840761,-150.54,0.0002382,2]
[387184710,1758619840771,-377.0,0.00023843,2]
[387184711,1758619840782,-600.0,0.00023848,2]
[387184712,1758619840800,-5675.85151208,0.00023877,2]
[387184713,1758619840820,-250.0,0.00023902,2]
[387184714,1758619840840,-500.0,0.00024,9]
[387184715,1758619840861,-500.0,0.00024,9]
[387184716,1758619840881,-500.0,0.00024,9]
[387184717,1758619840891,-500.0,0.00024,9]
[387184718,1758619840900,-500.0,0.00024,9]
[387184719,1758619840910,-500.0,0.00024,9]
[387184720,1758619840920,-500.0,0.00024,9]
[387184721,1758619840931,-500.0,0.00024,9]
[387184722,1758619840940,-5000.00025703,0.00024,5]
[387184723,1758619840951,-377.0,0.00024005,2]
[387184724,1758619840961,-377.0,0.00024034,2]
[387184725,1758619840971,-187.52,0.00024047,2]
[387184726,1758619840981,-150.0,0.0002405,4]
[387184727,1758619840991,-228.69,0.00024181,2]
[387184728,1758619841000,-377.0,0.00024182,2]
[387184729,1758619841010,-2515.33959149,0.00024228,2]
[387184730,1758619841021,-1101.52251779,0.00024249,2]
[387184731,1758619841030,-377.0,0.00024253,2]
[387184732,1758619841040,-544.339,0.00024284,6]
[387184733,1758619841050,-313.9393,0.00024333,2]
[387184734,1758619841060,-377.0,0.00024376,2]
[387184735,1758619841070,-2500.0,0.00024382,7]
[387184736,1758619841080,-600.0,0.00024396,2]
[387184737,1758619841090,-152.0,0.00024421,4]
[387184738,1758619841100,-377.0,0.00024515,2]
[387184739,1758619841110,-377.0,0.00024519,2]
[387184740,1758619841120,-377.0,0.00024574,2]
[387184741,1758619841130,-377.0,0.00024577,2]
[387184742,1758619841140,-195.0,0.000246,2]
[387184743,1758619841151,-26120.0,0.000246,2]
[387184744,1758619841161,-176.42,0.00024636,2]
[387184745,1758619841171,-980.98,0.00024658,2]
[387184746,1758619841182,-1000.0,0.00024658,2]
[387184747,1758619841192,-150.0,0.000247,4]
[387184748,1758619841201,-150.0,0.000247,4]
[387184749,1758619841211,-9698.25888823,0.00024703,2]
[387184750,1758619841221,-377.0,0.0002473,2]
[387184751,1758619841231,-165.07266203,0.00024749,2]
[387184752,1758619841241,-986.1454,0.0002475,2]
[387184753,1758619841251,-5675.85151208,0.00024757,2]
[387184754,1758619841260,-150.0,0.00024758,2]
[387184755,1758619841280,-41527.1847862,0.000248,2]
[387184756,1758619841301,-1000.0,0.00024849,2]
[387184757,1758619841323,-41527.1847862,0.0002488,2]
[387184758,1758619841335,-10436.06349992,0.0002489,2]
[387184763,1758619843130,-301.89,0.00022,2]
[387184764,1758619843143,-114145.49085908,0.0002489,2]
[387184765,1758619843157,-26899.8913,0.000249,2]
[387184766,1758619843173,-191720.7698,0.000249,2]
[387184767,1758619843186,-1000.0,0.000249,2]
[387184768,1758619843200,-500.0,0.000249,5]
[387184769,1758619843213,-548.9842554,0.000249,2]
[387184770,1758619843226,-151.0,0.000249,7]
[387184771,1758619843239,-151.0,0.000249,7]
[387184772,1758619843253,-248.282744,0.000249,7]
[387184773,1758619843267,-155.092379,0.000249,7]
[387184774,1758619843284,-267.536622,0.000249,7]
[387184775,1758619843298,-151.0,0.000249,7]
[387184776,1758619843312,-151.0,0.000249,7]
[387184777,1758619843328,-151.0,0.000249,7]
[387184778,1758619843341,-875.439,0.000249,7]
[387184779,1758619843355,-875.439,0.000249,7]
[387184780,1758619843368,-875.439,0.000249,7]
[387184781,1758619843380,-875.439,0.000249,7]
[387184782,1758619843393,-151.0,0.000249,7]
[387184783,1758619843407,-412.11021,0.000249,7]
[387184784,1758619843421,-412.11021,0.000249,7]
[387184785,1758619843434,-412.11021,0.000249,7]
[387184786,1758619843448,-151.0,0.000249,7]
[387184787,1758619843461,-412.11021,0.000249,7]
[387184788,1758619843474,-164.964204,0.000249,7]
[387184789,1758619843487,-151.0,0.000249,7]
[387184790,1758619843500,-600.0,0.00024944,2]
[387184791,1758619843514,-150.0,0.0002497,2]
[387184792,1758619843527,-150.0,0.0002497,2]
[387184793,1758619843540,-150.0,0.0002497,2]
[387184794,1758619843553,-150.0,0.0002497,2]
[387184795,1758619843568,-500.0,0.0002497,2]
[387184796,1758619843582,-894.0,0.0002497,2]
[387184797,1758619843596,-150.0,0.0002497,2]
[387184798,1758619843609,-150.0,0.0002497,2]
[387184799,1758619843622,-150.0,0.0002497,2]
[387184800,1758619843635,-150.0,0.0002497,2]
[387184801,1758619843648,-150.0,0.0002497,2]
[387184802,1758619843661,-150.0,0.0002497,2]
[387184803,1758619843674,-150.91526158,0.0002497,2]
[387184804,1758619843687,-150.0,0.0002497,2]
[387184805,1758619843699,-150.0,0.0002497,2]
[387184806,1758619843712,-150.0,0.0002497,2]
[387184807,1758619843725,-150.0,0.0002497,2]
[387184808,1758619843737,-150.0,0.0002497,2]
[387184809,1758619843750,-151.19026331,0.0002497,2]
[387184810,1758619843763,-150.0,0.0002497,2]
[387184811,1758619843775,-500.0,0.0002497,2]
[387184812,1758619843788,-150.0,0.0002497,2]
[387184813,1758619843800,-150.0,0.0002497,2]
[387184814,1758619843813,-150.0,0.0002497,2]
[387184815,1758619843826,-150.0,0.0002497,2]
[387184816,1758619843838,-150.0,0.0002497,2]
[387184817,1758619843852,-150.0,0.0002497,2]
[387184818,1758619843865,-500.0,0.0002497,2]
[387184819,1758619843878,-150.0,0.0002497,2]
[387184820,1758619843890,-150.0,0.0002497,2]
[387184821,1758619843904,-150.0,0.0002497,2]
[387184822,1758619843916,-150.0,0.0002497,2]
[387184823,1758619843929,-150.0,0.0002497,2]
[387184824,1758619843941,-150.0,0.0002497,2]
[387184825,1758619843955,-150.0,0.0002497,2]
[387184826,1758619843967,-377.0,0.0002497,2]
[387184827,1758619843980,-500.0,0.00024973,2]
[387184828,1758619843994,-500.0,0.00024973,2]
[387184829,1758619844006,-501.40256961,0.00024973,2]
[387184830,1758619844019,-502.34226443,0.00024973,2]
[387184831,1758619844032,-500.0,0.00024973,2]
[387184832,1758619844045,-200.0,0.00024973,2]
[387184833,1758619844058,-500.0,0.00024973,2]
[387184834,1758619844070,-500.0,0.00024973,2]
[387184835,1758619844083,-501.11252843,0.00024973,2]
[387184836,1758619844098,-506.46311091,0.00024973,2]
[387184837,1758619844110,-150.0,0.00024973,2]
[387184838,1758619844123,-999.99,0.0002498,2]
[387184839,1758619844136,-9999.99,0.0002498,2]
[387184840,1758619844149,-150.99,0.0002498,2]
[387184841,1758619844162,-307.12,0.0002498,2]
[387184842,1758619844174,-9999.99,0.0002498,2]
[387184843,1758619844186,-678.0,0.0002498,2]
[387184844,1758619844198,-66962.46431968,0.0002498,2]
[387184845,1758619844237,-29934.30018142,0.0002498,2]
[387184846,1758619844251,-152.39,0.0002498,2]
[387184847,1758619844264,-27684.7898575,0.00024986,2]
[387184848,1758619844274,-322.09016029,0.00024989,10]
[387184849,1758619844284,-124581.554359,0.0002499,2]
[387184850,1758619844293,-151.0,0.0002499,7]
[387184851,1758619844303,-151.0,0.0002499,7]
[387184852,1758619844312,-162.718914,0.0002499,7]
[387184853,1758619844322,-151.0,0.0002499,7]
[387184854,1758619844332,-151.0,0.0002499,7]
[387184855,1758619844341,-151.0,0.0002499,7]
[387184856,1758619844351,-151.0,0.0002499,7]
[387184857,1758619844361,-151.0,0.0002499,7]
[387184858,1758619844370,-875.439,0.0002499,7]
[387184859,1758619844380,-875.439,0.0002499,7]
[387184860,1758619844390,-875.439,0.0002499,7]
[387184861,1758619844399,-875.439,0.0002499,7]
[387184862,1758619844409,-151.0,0.0002499,7]
[387184863,1758619844418,-412.11021,0.0002499,7]
[387184864,1758619844427,-412.11021,0.0002499,7]
[387184865,1758619844437,-412.11021,0.0002499,7]
[387184866,1758619844447,-151.0,0.0002499,7]
[387184867,1758619844457,-412.11021,0.0002499,7]
[387184868,1758619844841,-151.0,0.0002499,7]
[387184869,1758619844871,-1882.7524348,0.00024996,2]
[387184870,1758619844897,-35606.0544561,0.00024996,2]
[387184871,1758619844908,-4274.6166038,0.00024996,2]
[387184872,1758619844918,-151.0,0.00024996,7]
[387184873,1758619844928,-155.201324,0.00024996,7]
[387184874,1758619844937,-151.0,0.00024996,7]
[387184875,1758619844947,-209.71896,0.00024996,7]
[387184876,1758619844956,-151.0,0.00024996,7]
[387184877,1758619844965,-151.0,0.00024996,7]
[387184878,1758619844975,-274.786565,0.00024996,7]
[387184879,1758619844985,-271.97470145,0.00024999,2]
[387184880,1758619844994,-176.0,0.00024999,2]
[387184881,1758619845004,-1000.0,0.00024999,2]
[387184882,1758619845014,-1087.62702199,0.00024999,2]
[387184883,1758619845024,-4510.28983207,0.00025,3]
[387184884,1758619845034,-2747.52,0.00025,7]
[387184885,1758619845043,-213486.31594399,0.00025,2]
[387184886,1758619845053,-10982.1220693,0.00025,15]
[387184887,1758619845062,-1821.9,0.00025,7]
[387184888,1758619845072,-300.0,0.00025,2]
[387184889,1758619845081,-5343.87,0.00025,7]
[387184890,1758619845091,-162.0,0.00025,7]
[387184891,1758619845100,-151.0,0.00025,7]
[387184892,1758619845110,-151.0,0.00025,7]
[387184893,1758619845119,-151.0,0.00025,7]
[387184894,1758619845129,-151.0,0.00025,7]
[387184895,1758619845138,-151.0,0.00025,7]
[387184896,1758619845147,-259.203594,0.00025,7]
[387184897,1758619845156,-257.745382,0.00025,7]
[387184898,1758619845166,-151.0,0.00025,7]
[387184899,1758619845175,-151.0,0.00025,7]
[387184900,1758619845184,-151.0,0.00025,7]
[387184901,1758619845194,-151.0,0.00025,7]
[387184902,1758619845203,-151.0,0.00025,7]
[387184903,1758619845212,-151.0,0.00025,7]
[387184904,1758619845221,-217.437658,0.00025,7]
[387184905,1758619845231,-151.0,0.00025,7]
[387184906,1758619845240,-184.029146,0.00025,7]
[387184907,1758619845250,-875.439,0.00025,7]
[387184908,1758619845260,-875.439,0.00025,7]
[387184909,1758619845269,-875.439,0.00025,7]
[387184910,1758619845279,-875.439,0.00025,7]
[387184911,1758619845288,-412.11021,0.00025,7]
[387184912,1758619845298,-412.11021,0.00025,7]
[387184913,1758619845309,-412.11021,0.00025,7]
[387184914,1758619845318,-151.0,0.00025,7]
[387184915,1758619845327,-412.11021,0.00025,7]
[387184916,1758619845337,-228.69,0.00025055,2]
[387184917,1758619845347,-13842.3949287,0.0002509,2]
[387184918,1758619845357,-200.0,0.000251,7]
[387184919,1758619845367,-151.0,0.000251,7]
[387184920,1758619845377,-5513.0,0.000251,3]
[387184921,1758619845386,-2405.54,0.00025133,7]
[387184922,1758619845396,-152.0,0.00025141,5]
[387184923,1758619845405,-3292.0,0.0002517,2]
[387184924,1758619845414,-500.0,0.00025174,5]
[387184925,1758619845423,-244.0,0.0002518,2]
[387184926,1758619845433,-168.0,0.00025196,2]
[387184927,1758619845442,-13842.3949287,0.00025197,2]
[387184928,1758619845451,-516.64379166,0.000252,3]
[387184929,1758619845460,-1281.62,0.000252,2]
[387184930,1758619845470,-151.0,0.00025207,7]
[387184931,1758619845479,-1303.708,0.00025217,2]
[387184932,1758619845488,-4177.0,0.00025217,2]
[387184933,1758619845498,-150.0,0.00025244,2]
[387184934,1758619845507,-150.0,0.00025244,2]
[387184935,1758619845516,-150.0,0.00025244,2]
[387184936,1758619845525,-550.0,0.00025244,2]
[387184937,1758619845534,-894.0,0.00025244,2]
[387184938,1758619845544,-150.0,0.00025244,2]
[387184939,1758619845554,-150.0,0.00025244,2]
[387184940,1758619845564,-150.0,0.00025244,2]
[387184941,1758619845575,-150.0,0.00025244,2]
[387184942,1758619845585,-150.0,0.00025244,2]
[387184943,1758619845594,-150.0,0.00025244,2]
[387184944,1758619845604,-151.01417771,0.00025244,2]
[387184945,1758619845614,-150.0,0.00025244,2]
[387184946,1758619845624,-150.0,0.00025244,2]
[387184947,1758619845634,-150.0,0.00025244,2]
[387184948,1758619845643,-500.0,0.00025244,2]
[387184949,1758619845653,-150.0,0.00025244,2]
[387184950,1758619845662,-150.0,0.00025244,2]
[387184951,1758619845672,-150.0,0.00025244,2]
[387184952,1758619845681,-500.0,0.00025244,2]
[387184953,1758619845691,-150.0,0.00025244,2]
[387184954,1758619845700,-200.0,0.00025244,2]
[387184955,1758619845710,-200.0,0.00025244,2]
[387184956,1758619845720,-240.54874685,0.0002526,2]
[387184957,1758619845730,-244.0,0.00025281,2]
[387184958,1758619845740,-200.0,0.0002531,7]
[387184959,1758619845749,-160.58776779,0.00025332,2]
[387184960,1758619845759,-407.07180478,0.0002534,2]
[387184961,1758619845768,-150.0,0.0002535,4]
[387184962,1758619845777,-151.0,0.00025359,2]
[387184963,1758619845787,-240.54874685,0.0002537,2]
[387184964,1758619845796,-13842.3949287,0.00025371,2]
[387184965,1758619845805,-2070.0,0.000254,2]
[387184966,1758619845814,-152.39,0.0002541,2]
[387184967,1758619845823,-110739.15943,0.0002542,2]
[387184968,1758619845834,-183.205,0.00025421,2]
[387184970,1758619845843,-300.0,0.00025429,10]
[387184971,1758619845853,-666.0,0.00025429,2]
[387184972,1758619845863,-151.0,0.0002543,7]
[387184973,1758619845873,-151.0,0.0002543,7]
[387184974,1758619845883,-151.0,0.0002543,7]
[387184975,1758619845892,-151.0,0.0002543,7]
[387184976,1758619845901,-151.0,0.0002543,7]
[387184977,1758619845911,-151.0,0.0002543,7]
[387184978,1758619845919,-151.0,0.0002543,7]
[387184979,1758619845929,-151.0,0.0002543,7]
[387184980,1758619845938,-151.0,0.0002543,7]
[387184981,1758619845947,-154.750297,0.0002543,7]
[387184982,1758619845956,-151.0,0.0002543,7]
[387184983,1758619845965,-151.0,0.0002543,7]
[387184984,1758619845975,-151.0,0.0002543,7]
[387184985,1758619845984,-164.280327,0.0002543,7]
[387184986,1758619845993,-151.0,0.0002543,7]
[387184987,1758619846002,-151.0,0.0002543,7]
[387184988,1758619846012,-151.0,0.0002543,7]
[387184989,1758619846022,-151.0,0.0002543,7]
[387184990,1758619846032,-151.0,0.0002543,7]
[387184991,1758619846042,-151.0,0.0002543,7]
[387184992,1758619846051,-151.0,0.0002543,7]
[387184993,1758619846060,-205.500738,0.0002543,7]
[387184994,1758619846070,-151.0,0.0002543,7]
[387184995,1758619846079,-151.0,0.0002543,7]
[387184996,1758619846088,-151.0,0.0002543,7]
[387184997,1758619846098,-151.0,0.0002543,7]
[387184998,1758619846107,-151.0,0.0002543,7]
[387184999,1758619846116,-151.469,0.0002543,7]
[387185000,1758619846126,-151.0,0.0002543,7]
[387185001,1758619846135,-151.0,0.0002543,7]
[387185002,1758619846145,-151.0,0.0002543,7]
[387185003,1758619846154,-261.23132,0.0002543,7]
[387185004,1758619846163,-152.39,0.0002543,2]
[387185005,1758619846173,-6000.0,0.00025432,7]
[387185006,1758619846182,-300.0,0.00025439,10]
[387185007,1758619846192,-666.0,0.00025439,2]
[387185008,1758619846201,-300.0,0.00025439,10]
[387185009,1758619846210,-151.0,0.00025439,7]
[387185010,1758619846219,-151.0,0.00025439,7]
[387185011,1758619846229,-875.439,0.00025439,7]
[387185012,1758619846238,-875.439,0.00025439,7]
[387185013,1758619846247,-875.439,0.00025439,7]
[387185014,1758619846257,-875.439,0.00025439,7]
[387185015,1758619846267,-247584.00846141,0.0002544,2]
[387185016,1758619846615,210.934343,0.00018475,2]
[387185017,1758619847308,169.460986,0.00018475,2]
[387185018,1758619847411,169.460986,0.00017996,2]
[387185019,1758619847503,169.460986,0.00017994,2]
[387185024,1758619931257,160.0,0.000301,120]
[387185027,1758620096065,10000.0,0.00030137,120]
[387185029,1758620135666,160.01,0.00012013,2]
[387185031,1758620146988,238.91391291,0.000301,120]
[387185033,1758620166091,10000.0,0.00030136,120]
[387185072,1758621032186,-532.84343224,0.00019991,2]
[387185073,1758621032292,-667.15656776,0.00019991,2]
[387185074,1758621032301,-500.0,0.00019992,2]
[387185075,1758621032311,-500.0,0.00019992,2]
[387185076,1758621032322,-500.0,0.00019992,2]
[387185077,1758621032331,-265.62928776,0.00019992,2]
[387185078,1758621032355,-234.37071224,0.00019992,2]
[387185079,1758621032364,-205.32728776,0.00019992,2]
[387185080,1758621032375,-278.82768715,0.00019992,2]
[387185081,1758621032384,-500.0,0.00019992,2]
[387185082,1758621032393,-500.0,0.00019992,2]
[387185083,1758621032403,-500.0,0.00019992,2]
[387185084,1758621032412,-767.84386724,0.00021378,2]
[387185086,1758621032424,-19445.12308222,0.00021378,2]
[387185087,1758621032433,-1100.0,0.00021535,2]
[387185088,1758621032444,-1141.16438307,0.00021536,2]
[387185089,1758621032454,-500.0,0.000218,2]
[387185090,1758621032463,-1680.0,0.00021873,2]
[387185091,1758621032472,-1683.88,0.000219,2]
[387185092,1758621032481,-268.34,0.00022,2]
[387185093,1758621032490,-1870.98,0.00022,2]
[387185094,1758621032500,-500.0,0.000223,2]
[387185095,1758621032509,-20607.0,0.000226,2]
[387185096,1758621032518,-163.12,0.00022701,2]
[387185097,1758621032527,-899.0,0.00022736,2]
[387185098,1758621032536,-1179.0,0.00022736,2]
[387185099,1758621032544,-4231.0,0.00022736,2]
[387185100,1758621032554,-4177.0,0.00022736,2]
[387185101,1758621032563,-18149.78980436,0.00023058,2]
[387185102,1758621032572,-5513.0,0.000231,3]
[387185103,1758621032581,-382.95,0.00023199,2]
[387185104,1758621032591,-5513.0,0.000235,5]
[387185105,1758621032600,-8565.75555911,0.00023524,2]
[387185106,1758621032610,-151.0,0.00023524,2]
[387185107,1758621032619,-248.71531821,0.00023524,2]
[387185108,1758621032628,-1004.24128571,0.00023524,2]
[387185109,1758621032637,-18656.86167946,0.00023551,2]
[387185110,1758621032646,-268.34,0.0002357,2]
[387185111,1758621032656,-1870.98,0.0002357,2]
[387185112,1758621032665,-3728.36693706,0.00023579,2]
[387185113,1758621032675,-150.0,0.00023608,7]
[387185115,1758621032684,-250.0,0.00023687,2]
[387185117,1758621032697,-150.54,0.00023832,2]
[387185119,1758621032706,-152.33,0.00023848,2]
[387185121,1758621032715,-7600.43616864,0.00023865,2]
[387185123,1758621032724,-187.52,0.0002388,2]
[387185125,1758621032733,-195.63,0.0002388,2]
[387185127,1758621032741,-2351.0,0.00023932,2]
[387185129,1758621032751,-5000.0,0.00023946,2]
[387185131,1758621032760,-848.23,0.00023951,30]
[387185133,1758621032769,-2792.66,0.00024025,2]
[387185135,1758621032778,-160.01,0.00024025,2]
[387185137,1758621032788,-382.95,0.00024069,2]
[387185140,1758621032797,-3083.57832794,0.00024098,2]
[387185143,1758621032822,-2334.72396885,0.00024098,2]
[387185146,1758621032833,-6268.3579528,0.00024098,2]
[387185148,1758621032845,-1387.71157667,0.00024098,2]
[387185150,1758621032856,-606.64638681,0.00024098,2]
[387185154,1758621032882,-162.53518757,0.00024098,2]
[387185155,1758621032891,-168.0,0.0002411,2]
[387185156,1758621032900,-472.0,0.00024113,2]
[387185157,1758621032909,-949.0,0.00024119,2]
[387185158,1758621032918,-472.0,0.0002412,2]
[387185159,1758621032930,-150.99,0.00024174,2]
[387185160,1758621032942,-9482.7,0.00024174,2]
[387185161,1758621032951,-163.98,0.00024179,2]
[387185162,1758621032960,-600.0,0.00024185,2]
[387185163,1758621032971,-157.86,0.00024224,2]
[387185165,1758621032981,-168.0,0.0002432,2]
[387185166,1758621032990,-472.0,0.00024346,2]
[387185168,1758621033002,-500.0,0.0002444,9]
[387185170,1758621033012,-500.0,0.0002444,9]
[387185172,1758621033021,-500.0,0.0002444,9]
[387185174,1758621033030,-500.0,0.0002444,9]
[387185176,1758621033039,-500.0,0.0002444,9]
[387185178,1758621033049,-500.0,0.0002444,9]
[387185180,1758621033058,-126.26893835,0.0002444,9]
[387185182,1758621033069,-281.5299709,0.0002444,9]
[387185187,1758621033112,-92.20109075,0.0002444,9]
[387185189,1758621033122,-475.13570884,0.0002444,9]
[387185195,1758621033161,-24.86429116,0.0002444,9]
[387185197,1758621033171,-482.04071555,0.0002444,9]
[387185354,1758621038222,-507.00297493,0.00020921,2]
[387185355,1758621038381,-9.64081673,0.00020921,2]
[387185356,1758621038391,-17.95928445,0.0002444,9]
[387185357,1758621038400,-500.0,0.0002444,9]
[387185358,1758621038410,-500.0,0.0002444,9]
[387185359,1758621038419,-500.0,0.0002444,9]
[387185360,1758621038428,-390.16849919,0.0002444,9]
[387185361,1758621038450,-109.83150081,0.0002444,9]
[387185362,1758621038459,-500.0,0.0002444,9]
[387185363,1758621038468,-500.0,0.0002444,9]
[387185364,1758621038478,-500.0,0.0002444,9]
[387185365,1758621038487,-472.0,0.0002449,2]
[387185367,1758621038497,-685.897,0.000245,7]
[387185369,1758621038507,-168.0,0.00024512,2]
[387185372,1758621038516,-195.0,0.000246,2]
[387185374,1758621038527,-981.05,0.00024658,2]
[387185376,1758621038537,-1000.0,0.00024658,2]
[387185378,1758621038546,-168.0,0.00024661,2]
[387185380,1758621038555,-875.60994084,0.00024676,2]
[387185412,1758621040111,-225.91257695,0.00024676,2]
[387185413,1758621040120,-600.0,0.00024733,2]
[387185414,1758621040130,-168.0,0.00024753,2]
[387185415,1758621040139,-472.0,0.00024874,2]
[387185416,1758621040148,-472.0,0.00024875,2]
[387185417,1758621040158,-168.0,0.00024931,2]
[387185418,1758621040167,-213.18119495,0.00024939,2]
[387185419,1758621040178,-169.76880505,0.00024939,2]
[387185420,1758621040188,-151.0,0.00025,7]
[387185421,1758621040198,-2000.0,0.00025,7]
[387185422,1758621040207,-151.0,0.00025,7]
[387185423,1758621040216,-168.0,0.00025015,2]
[387185424,1758621040226,-168.0,0.00025094,2]
[387185425,1758621040235,-268.34,0.00025139,7]
[387185426,1758621040246,-907.42946436,0.00025139,7]
[387185427,1758621040258,-963.55053564,0.00025139,7]
[387185428,1758621040268,-150.0,0.00025184,2]
[387185429,1758621040279,-1000.0,0.00025196,2]
[387185430,1758621040289,-12379.71693231,0.00025213,2]
[387185431,1758621040298,-150.0,0.00025244,2]
[387185432,1758621040307,-241.66861485,0.00025244,2]
[387185433,1758621040317,-500.0,0.00025244,2]
[387185434,1758621040326,-150.0,0.00025244,2]
[387185435,1758621040336,-150.0,0.00025244,2]
[387185436,1758621040346,-150.0,0.00025244,2]
[387185437,1758621040355,-150.0,0.00025244,2]
[387185438,1758621040365,-200.0,0.00025244,2]
[387185439,1758621040374,-150.0,0.00025244,2]
[387185440,1758621040383,-150.0,0.00025244,2]
[387185441,1758621040392,-150.0,0.00025244,2]
[387185442,1758621040402,-150.0,0.00025244,2]
[387185443,1758621040411,-150.0,0.00025244,2]
[387185444,1758621040421,-150.0,0.00025244,2]
[387185445,1758621040431,-150.0,0.00025244,2]
[387185446,1758621040440,-150.87400284,0.00025244,2]
[387185447,1758621040451,-150.0,0.00025244,2]
[387185448,1758621040460,-150.0,0.00025244,2]
[387185449,1758621040470,-150.0,0.00025244,2]
[387185450,1758621040479,-150.0,0.00025244,2]
[387185451,1758621040488,-151.01216228,0.00025244,2]
[387185452,1758621040497,-200.0,0.00025244,2]
[387185453,1758621040507,-500.0,0.00025244,2]
[387185454,1758621040515,-150.0,0.00025244,2]
[387185455,1758621040525,-150.0,0.00025244,2]
[387185456,1758621040534,-150.0,0.00025244,2]
[387185458,1758621040543,-500.0,0.00025244,2]
[387185460,1758621040553,-150.0,0.00025244,2]
[387185462,1758621040560,-150.0,0.00025244,2]
[387185463,1758621040569,-500.0,0.00025244,2]
[387185464,1758621040578,-500.0,0.00025244,2]
[387185466,1758621040588,-150.0,0.00025244,2]
[387185467,1758621040597,-910.0,0.00025244,2]
[387185468,1758621040606,-424.0,0.00025244,2]
[387185469,1758621040616,-150.0,0.00025244,2]
[387185470,1758621040625,-150.0,0.00025244,2]